bitfinex/quotes_ETHUSD_20250319
["timestamp","ask_amount","ask_price","bid_price","bid_amount"]
[1742387098428,17.164,2014.7,2014.3,4.96449]
[1742387098598,10.34990424,2014.6,2014.2,4.96473]
[1742387098801,8.69767466,2014.6,2014.2,4.96463]
[1742387099538,8.69767466,2014.6,2014.2,9.92921]
[1742387099710,8.69767466,2014.6,2014.3,4.9645]
[1742387099906,8.69767466,2014.6,2014.3,4.96438]
[1742387100110,8.69767466,2014.6,2014.3,4.96433]
[1742387100442,8.69767466,2014.6,2014.4,4.96425]
[1742387100738,7.93007466,2014.6,2014.4,4.92425]
[1742387100948,7.93007466,2014.6,2014.3,4.96444]
[1742387101141,3.946334,2014.3,2014.1,4.9649]
[1742387101344,7.93007466,2014.6,2014.4,4.96416]
[1742387101636,7.93007466,2014.6,2014.3,4.9644]
[1742387101834,7.93007466,2014.6,2014.3,4.96439]
[1742387102040,17.164,2014.7,2014.5,4.96401]
[1742387102240,17.164,2014.7,2014.6,4.96376]
[1742387102444,11.01848424,2014.8,2014.6,4.96376]
[1742387102756,22.50537991,2015.0,2014.6,4.96376]
[1742387102757,17.165,2015.0,2014.9,4.96302]
[1742387103230,10.22048424,2015.4,2015.0,4.96254]
[1742387103403,4.61848424,2015.2,2014.7,0.8073]
[1742387103604,1.71043842,2015.3,2014.8,4.96327]
[1742387103844,4.61848424,2015.4,2015.2,4.96225]
[1742387104043,4.61848424,2015.4,2015.1,4.96249]
[1742387104340,11.722,2015.5,2015.3,4.96204]
[1742387104565,6.22737547,2015.5,2015.3,4.96187]
[1742387104767,5.51678714,2015.9,2015.2,4.96228]
[1742387104768,0.7782,2015.9,2015.2,4.96228]
[1742387104966,0.7782,2015.9,2015.5,4.96139]
[1742387105270,4.61848424,2015.8,2015.5,4.96139]
[1742387105467,4.61848424,2015.8,2015.6,4.96125]
[1742387106069,4.61848424,2015.8,2015.6,4.96113]
[1742387106229,22.12283,2016.2,2016.0,4.96022]
[1742387106230,17.163,2016.2,2016.0,4.96022]
[1742387106564,17.163,2016.2,2015.9,4.96055]
[1742387106768,17.163,2016.2,2016.0,4.96029]
[1742387107066,17.163,2016.2,2016.0,4.9603]
[1742387107366,19.87401247,2016.2,2016.0,4.9603]
[1742387107570,19.87401247,2016.2,2016.0,4.96021]
[1742387107774,10.73848424,2016.5,2016.1,4.96007]
[1742387107976,10.73848424,2016.5,2016.1,9.91995]
[1742387108131,10.73848424,2016.5,2016.2,4.9598]
[1742387108775,4.61848424,2016.5,2016.2,4.95967]
[1742387108976,5.61315602,2016.5,2016.3,4.95948]
[1742387109135,5.61315602,2016.5,2016.2,4.95978]
[1742387109470,5.61315602,2016.5,2016.2,9.91943]
[1742387109769,5.61315602,2016.5,2016.3,4.95956]
[1742387110695,5.61315602,2016.5,2016.3,9.91879]
[1742387110873,5.61315602,2016.5,2016.3,4.95939]
[1742387111570,0.99467178,2016.5,2016.4,4.95933]
[1742387111992,23.27725025,2016.8,2016.5,4.95894]
[1742387112289,17.16,2016.8,2016.7,4.95859]
[1742387113450,6.12,2017.2,2016.9,4.9579]
[1742387113761,0.37826631,2017.4,2017.1,5.77161]
[1742387113965,4.95677,2017.5,2017.0,9.91561]
[1742387114169,10.61433966,2017.4,2016.9,9.91598]
[1742387114386,5.65738966,2017.4,2017.0,9.91539]
[1742387114564,5.65738966,2017.4,2017.1,4.95742]
[1742387114890,1.03890542,2017.4,2017.3,4.95712]
[1742387115055,4.61848424,2017.6,2017.3,4.95712]
[1742387115260,5.597,2017.7,2017.4,4.95673]
[1742387115561,17.154,2017.9,2017.2,0.7595]
[1742387115766,26.72823424,2017.9,2017.5,4.95652]
[1742387116289,26.72823424,2017.9,2017.5,4.95643]
[1742387116483,3.78038642,2017.8,2017.5,4.95643]
[1742387116689,3.78038642,2017.8,2017.6,4.95636]
[1742387116991,3.78038642,2017.8,2017.7,4.95613]
[1742387117391,17.154,2017.9,2017.7,4.95613]
[1742387117592,17.154,2017.9,2017.8,4.95589]
[1742387117797,9.57314424,2018.3,2017.7,0.8004]
[1742387117957,4.61848424,2018.3,2018.1,4.95514]
[1742387118301,4.95418,2018.5,2018.1,9.91012]
[1742387118462,3.80268042,2018.4,2018.2,4.9549]
[1742387118995,7.854682,2018.1,2017.7,0.8004]
[1742387119204,4.95589,2017.8,2017.4,0.81]
[1742387119369,4.95594,2017.8,2017.4,5.76677]
[1742387119580,4.95594,2017.8,2017.4,5.76675]
[1742387119781,1.45302042,2017.7,2017.5,4.95651]
[1742387120304,1.45302042,2017.7,2017.5,4.95647]
[1742387120667,1.45302042,2017.7,2017.6,4.95638]
[1742387120867,9.57423424,2017.9,2017.5,4.95647]
[1742387121108,14.53004424,2017.9,2017.5,4.95647]
[1742387121406,9.57423424,2017.9,2017.5,4.95647]
[1742387121603,4.61848424,2017.9,2017.6,4.95634]
[1742387121900,15.16617424,2018.3,2017.8,4.9557]
[1742387122113,9.57353424,2018.2,2017.8,5.776]
[1742387122322,9.57396424,2018.0,2017.6,4.95627]
[1742387122601,4.61848424,2017.8,2017.5,4.95642]
[1742387122781,9.57396424,2018.0,2017.6,4.95638]
[1742387122967,1.45291442,2017.9,2017.6,4.95638]
[1742387123299,1.45291442,2017.9,2017.7,4.9561]
[1742387123503,4.61848424,2018.2,2017.8,4.95565]
[1742387123808,15.29693424,2018.4,2018.0,4.95528]
[1742387123967,10.34234424,2018.4,2018.0,4.95528]
[1742387124370,4.61848424,2018.2,2017.6,0.7612]
[1742387124595,4.61848424,2017.7,2017.0,1.01496214]
[1742387124801,4.95679,2017.5,2017.0,5.97272214]
[1742387124999,4.95679,2017.5,2017.1,4.9575]
[1742387125286,5.41829842,2017.6,2017.2,4.95724]
[1742387125480,0.46184842,2017.6,2017.1,4.95761]
[1742387125698,5.41830842,2017.6,2017.1,4.95748]
[1742387125864,1.56287927,2017.5,2017.2,4.95726]
[1742387126291,1.56287927,2017.5,2017.1,4.95744]
[1742387126677,6.51952927,2017.5,2017.0,4.95778]
[1742387126910,4.95748,2017.2,2016.9,0.7588]
[1742387127078,4.95714,2017.3,2016.9,5.71688]
[1742387127278,1.45325842,2017.2,2016.9,5.71688]
[1742387127474,6.41062842,2017.2,2016.9,0.7588]
[1742387127669,1.45325842,2017.2,2017.0,4.95776]
[1742387128004,1.56287927,2017.5,2017.3,4.95702]
[1742387128173,1.56287927,2017.5,2017.2,4.95733]
[1742387128975,0.46184842,2017.6,2017.2,4.95721]
[1742387129305,0.46184842,2017.6,2017.3,4.95699]
[1742387130274,22.09592,2017.8,2017.4,4.95678]
[1742387130470,17.14,2017.8,2017.4,4.95671]
[1742387130670,26.71445424,2017.8,2017.4,4.95669]
[1742387130910,26.71445424,2017.8,2017.3,0.7772]
[1742387130911,7.70584542,2017.7,2017.3,5.73431]
[1742387131107,7.70589542,2017.7,2017.3,5.73412]
[1742387131312,2.74956542,2017.7,2017.4,4.95685]
[1742387131604,21.75848424,2017.8,2017.5,4.95649]
[1742387132011,21.75848424,2017.8,2017.6,4.95625]
[1742387132173,17.14,2017.8,2017.6,4.95625]
[1742387132570,17.14,2017.8,2017.6,4.95624]
[1742387132814,10.73848424,2018.2,2017.8,4.95576]
[1742387132815,21.28345424,2018.2,2017.8,4.95576]
[1742387132986,2.70648142,2018.1,2017.8,4.95576]
[1742387133514,2.70648142,2018.1,2017.7,5.71693]
[1742387133515,11.71,2018.2,2017.9,9.9111]
[1742387133708,6.12,2018.2,2017.9,9.9111]
[1742387133919,6.12,2018.2,2017.9,4.95546]
[1742387134080,11.07497,2018.2,2017.7,5.71692]
[1742387134279,9.57421424,2017.9,2017.5,0.8154]
[1742387134591,10.53158566,2017.9,2017.5,5.77193]
[1742387134784,9.57416424,2017.9,2017.5,5.77184]
[1742387135305,14.53002424,2017.9,2017.5,5.77184]
[1742387135507,9.57416424,2017.9,2017.5,10.72832]
[1742387135724,9.57416424,2017.9,2017.5,5.77184]
[1742387136509,4.61848424,2017.9,2017.6,4.95633]
[1742387136711,4.95518,2018.1,2017.7,4.95595]
[1742387136878,4.95518,2018.1,2017.7,9.91192]
[1742387137081,10.73848424,2018.2,2017.5,0.8154]
[1742387137082,4.95575,2017.9,2017.5,5.77185]
[1742387137381,4.95575,2017.9,2017.5,10.72831]
[1742387137599,4.95589,2017.8,2017.5,0.8154]
[1742387137906,9.57437424,2017.8,2017.4,4.95678]
[1742387138107,14.53045424,2017.8,2017.4,4.95678]
[1742387138314,9.57437424,2017.8,2017.4,4.95673]
[1742387138509,9.57437424,2017.8,2017.4,4.9567]
[1742387139017,11.35477,2018.1,2017.7,4.95605]
[1742387139189,10.54417,2018.1,2017.8,5.71909]
[1742387139389,10.54417,2018.1,2017.8,0.7632]
[1742387139805,4.95517,2018.1,2017.8,0.7632]
[1742387139978,15.69339424,2018.2,2017.8,5.71896]
[1742387140312,4.95525,2018.1,2017.8,0.7632]
[1742387140512,4.95542,2018.0,2017.8,0.7632]
[1742387140830,4.95542,2018.0,2017.6,5.75851]
[1742387140972,4.95542,2018.0,2017.6,6.391638]
[1742387141171,15.69339424,2018.2,2017.8,4.95579]
[1742387141373,4.95515,2018.1,2017.8,4.95579]
[1742387141575,15.69339424,2018.2,2017.8,4.95579]
[1742387142024,15.69339424,2018.2,2017.8,4.95574]
[1742387142832,15.69339424,2018.2,2017.8,9.91147]
[1742387143033,15.69339424,2018.2,2017.8,4.95573]
[1742387143538,4.95516,2018.1,2017.6,5.75844]
[1742387143714,4.61848424,2018.0,2017.7,4.95605]
[1742387144935,16.48061546,2018.2,2017.8,4.95583]
[1742387145233,4.95516,2018.1,2017.8,4.95583]
[1742387146812,4.61848424,2018.0,2017.7,4.95605]
[1742387147007,4.61848424,2018.0,2017.7,4.95603]
[1742387147212,4.61848424,2018.0,2017.7,4.95596]
[1742387147728,4.61848424,2018.0,2017.7,9.91192]
[1742387148123,4.61848424,2018.0,2017.8,4.95587]
[1742387149611,21.43579546,2018.2,2017.8,4.95587]
[1742387150441,16.48070546,2018.2,2017.8,9.9116]
[1742387150645,16.48068546,2018.2,2017.8,4.95573]
[1742387151032,4.9552,2018.1,2017.8,4.95573]
[1742387151546,16.48064546,2018.2,2017.8,4.95573]
[1742387151838,15.69349424,2018.2,2017.6,0.8023]
[1742387152149,15.69349424,2018.2,2017.9,4.95556]
[1742387152329,9.57399424,2018.0,2017.6,5.75844]
[1742387152528,4.61848424,2018.0,2017.7,4.95593]
[1742387153436,4.61848424,2017.8,2017.4,5.73335]
[1742387153633,9.12,2018.2,2017.4,5.73335]
[1742387153634,9.8737,2018.2,2017.4,5.73335]
[1742387153957,4.61848424,2017.7,2017.4,0.7765]
[1742387154246,9.57526424,2017.5,2017.0,4.95785]
[1742387154450,4.95703,2017.4,2016.9,5.76848]
[1742387154650,4.95703,2017.4,2017.0,4.95777]
[1742387154954,4.95638,2017.6,2016.9,5.76848]
[1742387155134,4.61848424,2017.2,2016.9,0.8105]
[1742387155335,9.57545424,2017.4,2017.0,4.95774]
[1742387155540,9.57545424,2017.4,2017.0,4.9577]
[1742387155717,9.57545424,2017.4,2017.1,4.95757]
[1742387155916,4.61848424,2017.4,2017.1,9.91503]
[1742387156142,4.61848424,2017.4,2017.1,4.95746]
[1742387156336,4.61848424,2017.4,2017.1,4.95745]
[1742387156914,9.57538424,2017.4,2017.1,4.95745]
[1742387157751,4.95718,2017.3,2017.0,4.95784]
[1742387158457,11.32860566,2017.4,2017.0,4.95784]
[1742387158749,11.32860566,2017.4,2017.0,4.95771]
[1742387159417,11.32860566,2017.4,2017.0,9.91543]
[1742387159754,11.32860566,2017.4,2017.0,4.95771]
[1742387160247,4.95713,2017.3,2016.9,5.76854]
[1742387160621,4.95713,2017.3,2016.9,10.72648]
[1742387160841,1.92857357,2017.3,2016.9,0.8105]
[1742387161050,4.9578,2017.1,2016.7,0.8029]
[1742387161215,4.9585,2016.8,2016.4,4.95921]
[1742387161418,4.95842,2016.8,2016.4,9.91841]
[1742387161613,5.75033,2016.9,2016.5,4.95895]
[1742387161813,4.95764,2017.1,2016.6,0.7804]
[1742387162039,3.0,2017.3,2017.0,5.73822]
[1742387162259,9.57544424,2017.4,2017.1,4.9576]
[1742387162455,4.95715,2017.3,2017.0,0.7804]
[1742387162619,4.95875,2016.7,2016.3,0.7804]
[1742387162956,4.95908,2016.5,2016.3,0.7804]
[1742387163433,4.95861,2016.7,2016.4,4.95933]
[1742387163620,4.95861,2016.7,2016.3,0.7804]
[1742387163621,4.95868,2016.7,2016.3,0.7804]
[1742387163956,7.95837,2016.8,2016.4,4.95931]
[1742387164316,4.9586,2016.7,2016.4,4.95931]
[1742387164756,7.95837,2016.8,2016.5,4.95903]
[1742387164971,6.12,2016.9,2016.7,0.7558]
[1742387165335,11.07816,2016.9,2016.5,6.858554]
[1742387165669,4.9586,2016.7,2016.3,5.78906]
[1742387165971,9.9174,2016.7,2016.3,5.78906]
[1742387166171,11.50208424,2016.9,2016.3,5.78903]
[1742387166172,4.95842,2016.8,2016.3,5.78903]
[1742387166332,4.95869,2016.7,2016.3,10.74849]
[1742387166667,9.91749,2016.7,2016.3,5.78903]
[1742387166874,4.95898,2016.6,2016.3,0.8296]
[1742387167043,4.9586,2016.7,2016.3,0.8296]
[1742387167243,4.95843,2016.8,2016.4,4.9592]
[1742387167451,11.84182,2016.9,2016.4,4.9592]
[1742387168875,11.0781,2016.9,2016.6,4.95873]
[1742387169541,11.0781,2016.9,2016.5,4.95906]
[1742387169734,11.0781,2016.9,2016.5,4.95897]
[1742387170569,6.12,2016.9,2016.6,4.95874]
[1742387170779,6.12,2016.9,2016.5,4.95897]
[1742387170780,6.12,2016.9,2016.3,1.47096]
[1742387171068,6.12,2016.9,2016.7,4.95856]
[1742387171461,6.12,2016.9,2016.7,4.95858]
[1742387171971,4.95786,2017.0,2016.7,4.95858]
[1742387172181,9.57634424,2017.0,2016.7,4.95858]
[1742387172843,4.95811,2016.9,2016.6,4.95881]
[1742387173092,4.95933,2016.4,2016.1,0.8094]
[1742387173246,4.1680306,2016.4,2016.1,0.8094]
[1742387173441,9.1274206,2016.4,2016.1,5.76926]
[1742387173748,4.1680306,2016.4,2016.2,4.9598]
[1742387173978,9.1273606,2016.4,2015.9,5.75342]
[1742387174177,4.1680306,2016.2,2015.9,5.75342]
[1742387174485,4.1680306,2016.2,2016.0,4.96031]
[1742387174848,4.1680306,2016.2,2015.9,5.75342]
[1742387175288,5.7626,2016.3,2015.9,5.75342]
[1742387175444,4.96017,2016.1,2015.7,5.72948]
[1742387175644,4.6172744,2016.0,2015.7,5.72941]
[1742387176381,4.6172744,2016.0,2015.7,10.69028]
[1742387176787,9.5777444,2016.0,2015.5,5.7422]
[1742387176951,9.5781644,2015.8,2015.5,0.7807]
[1742387177152,9.5781644,2015.8,2015.3,5.74267]
[1742387177377,9.92233,2015.7,2015.3,5.74267]
[1742387177559,4.96106,2015.7,2015.3,5.74267]
[1742387177764,4.6172744,2015.6,2015.3,5.74267]
[1742387178381,4.6172744,2015.6,2015.3,5.74261]
[1742387178548,4.6172744,2015.6,2015.4,4.96177]
[1742387178949,4.96081,2015.8,2015.6,4.96114]
[1742387178950,4.6172744,2015.8,2015.6,4.96114]
[1742387179151,0.7539,2015.9,2015.6,4.96114]
[1742387179351,1.93680979,2015.9,2015.6,4.96114]
[1742387179552,8.69355795,2016.0,2015.7,4.96094]
[1742387179892,8.69355795,2016.0,2015.0,16.17532921]
[1742387179893,5.584,2016.1,2015.8,4.96062]
[1742387180205,3.0,2016.1,2015.8,4.96062]
[1742387181196,7.96008,2016.1,2015.8,4.96062]
[1742387181380,7.96008,2016.1,2015.7,4.96103]
[1742387181579,4.6172744,2016.0,2015.7,4.96103]
[1742387182689,3.0,2016.1,2015.8,4.9608]
[1742387182891,0.7931,2016.4,2015.9,4.96054]
[1742387183185,5.583,2016.7,2016.3,4.95933]
[1742387183186,5.4257744,2016.6,2016.3,4.95933]
[1742387183396,5.4257744,2016.6,2015.9,0.7796]
[1742387183397,17.149,2016.8,2016.6,4.95879]
[1742387183575,6.12,2016.9,2016.6,4.95865]
[1742387183763,6.12,2016.9,2016.4,0.7796]
[1742387183764,4.95837,2016.8,2016.4,5.73886]
[1742387183963,12.88340984,2016.9,2016.5,4.95889]
[1742387184181,12.88340984,2016.9,2016.6,4.95867]
[1742387184390,4.6172744,2016.7,2016.4,5.73891]
[1742387184688,4.6172744,2016.7,2016.2,5.75422]
[1742387184689,4.95893,2016.6,2016.2,5.75422]
[1742387184892,6.41238744,2016.6,2016.2,5.75422]
[1742387185353,1.45345744,2016.6,2016.2,10.71394]
[1742387185559,4.6172744,2016.5,2016.2,5.75422]
[1742387185893,0.8109,2016.6,2016.3,9.91879]
[1742387186069,0.8109,2016.6,2016.3,4.95937]
[1742387186264,5.3828744,2016.8,2016.4,4.95909]
[1742387186481,12.54570784,2016.8,2016.4,4.95909]
[1742387187198,7.58727784,2016.8,2016.5,4.95906]
[1742387187493,6.12,2016.9,2016.7,4.95859]
[1742387187692,4.6172744,2017.3,2016.7,4.95859]
[1742387187891,4.6172744,2017.3,2017.0,4.95765]
[1742387188967,9.5744144,2017.3,2016.9,9.91601]
[1742387189368,4.6172744,2017.3,2017.0,4.95781]
[1742387189592,4.6172744,2017.3,2017.0,9.91556]
[1742387189901,4.6172744,2017.3,2017.2,4.95736]
[1742387190354,21.7662744,2017.5,2017.2,4.95736]
[1742387190558,21.7662744,2017.5,2017.2,9.9145]
[1742387190753,21.7662744,2017.5,2017.2,4.95724]
[1742387190997,0.51904472,2017.8,2017.2,0.92705557]
[1742387191297,4.6172744,2017.7,2017.3,4.95705]
[1742387191501,4.6172744,2017.7,2017.5,4.95659]
[1742387191660,4.6172744,2017.7,2017.5,4.95643]
[1742387191860,4.6172744,2017.7,2017.4,0.7799]
[1742387192186,4.6172744,2017.7,2017.4,5.73661]
[1742387192593,4.6172744,2017.7,2017.5,4.95662]
[1742387192756,4.6172744,2017.7,2017.6,4.95638]
[1742387192959,8.4134744,2017.9,2017.6,4.95638]
[1742387193476,8.4134744,2017.9,2017.5,4.95657]
[1742387193677,4.6172744,2017.9,2017.7,4.95596]
[1742387193999,6.12,2018.1,2017.9,4.95554]
[1742387194162,6.12,2018.1,2018.0,4.9554]
[1742387195107,4.6172744,2018.4,2018.1,4.95503]
[1742387195303,4.6172744,2018.4,2018.0,4.9553]
[1742387195614,4.6172744,2018.4,2018.1,4.95502]
[1742387195814,4.6172744,2018.2,2018.0,5.94568157]
[1742387196003,4.6172744,2018.2,2018.0,4.95527]
[1742387196178,4.6172744,2018.4,2018.1,4.95515]
[1742387196780,4.6172744,2018.6,2018.2,0.7675]
[1742387196981,4.6172744,2018.6,2018.3,4.95456]
[1742387197308,4.6172744,2018.6,2018.3,4.95463]
[1742387197489,4.6172744,2018.6,2018.4,4.95429]
[1742387197695,17.143,2018.8,2018.7,4.95368]
[1742387197900,10.7372744,2019.0,2018.7,4.95368]
[1742387198217,6.12,2019.0,2018.7,4.95368]
[1742387198419,5.47097019,2019.3,2018.7,0.573068]
[1742387198584,4.95223,2019.3,2018.9,4.95313]
[1742387198920,9.90641,2018.9,2018.5,4.95397]
[1742387199116,4.95328,2018.9,2018.5,4.95397]
[1742387199318,9.5713044,2018.6,2018.2,6.3512]
[1742387199494,4.6172744,2018.6,2018.2,11.30603]
[1742387199820,4.6172744,2018.6,2018.2,11.30599]
[1742387199983,9.5713144,2018.6,2018.2,11.30599]
[1742387200186,4.6172744,2018.6,2017.9,1.7632896]
[1742387200383,4.6172744,2018.4,2018.0,4.95539]
[1742387200696,4.6172744,2018.4,2017.9,10.6851]
[1742387200898,4.6172744,2018.4,2018.0,4.95528]
[1742387201110,4.6172744,2018.4,2018.1,4.95514]
[1742387202130,9.5718044,2018.4,2017.9,5.72971]
[1742387202315,4.6172744,2018.0,2017.7,1.79420902]
[1742387202513,4.6172744,2018.0,2017.7,0.7841]
[1742387202945,9.5726944,2018.0,2017.6,4.95624]
[1742387204031,4.6172744,2018.2,2017.9,4.95563]
[1742387204531,5.575,2018.3,2018.1,4.95515]
[1742387204731,4.6172744,2018.4,2018.1,4.95515]
[1742387204917,10.3495344,2018.7,2018.3,4.95449]
[1742387205119,4.6172744,2018.5,2018.2,4.95484]
[1742387205320,9.5714544,2018.5,2018.1,9.91017]
[1742387205519,9.5715544,2018.5,2018.1,6.02359357]
[1742387205719,9.5715544,2018.5,2017.8,5.75923]
[1742387205720,0.8138,2018.2,2017.8,5.75923]
[1742387205922,4.6172744,2018.1,2017.8,5.75923]
[1742387206306,9.5725544,2018.1,2017.7,4.95601]
[1742387206707,4.6172744,2018.1,2017.7,4.95611]
[1742387206907,4.6172744,2018.1,2017.8,4.95574]
[1742387207404,4.6172744,2018.1,2017.8,4.95573]
[1742387208026,4.6172744,2018.3,2017.8,1.072016]
[1742387208351,4.6172744,2018.5,2018.1,4.95515]
[1742387208533,4.6172744,2018.5,2018.2,4.95468]
[1742387208835,4.6172744,2018.4,2017.7,3.7675]
[1742387209026,4.6172744,2018.2,2018.0,4.95525]
[1742387209621,4.6172744,2018.2,2018.0,4.95537]
[1742387210244,9.5722044,2018.2,2017.8,4.95583]
[1742387210546,10.3649044,2018.2,2017.8,4.95583]
[1742387210744,5.4099744,2018.2,2017.9,4.95563]
[1742387211248,5.4099744,2018.2,2017.8,4.95576]
[1742387211560,10.3650044,2018.2,2017.8,4.95571]
[1742387211950,0.7927,2018.2,2017.9,4.95562]
[1742387212250,9.5717144,2018.4,2018.0,4.95519]
[1742387212548,10.3709744,2018.5,2018.1,4.95506]
[1742387212738,4.6172744,2018.3,2017.8,1.129621]
[1742387213068,10.41367184,2018.3,2017.9,4.95555]
[1742387213385,4.95506,2018.2,2017.7,5.72362]
[1742387213646,4.95506,2018.2,2017.8,4.95571]
[1742387214033,4.95506,2018.2,2017.8,9.91141]
[1742387214211,15.36845184,2018.3,2017.9,4.95562]
[1742387214416,4.95492,2018.2,2017.9,4.95562]
[1742387214641,15.36844184,2018.3,2017.9,4.95562]
[1742387214837,10.41360184,2018.3,2017.8,4.9557]
[1742387215042,4.6172744,2017.9,2016.8,0.753]
[1742387215230,4.6172744,2017.4,2017.0,4.95773]
[1742387215427,9.5736744,2017.6,2017.2,4.95736]
[1742387215750,9.5736744,2017.6,2017.1,4.9575]
[1742387215905,4.95728,2017.3,2016.8,0.753]
[1742387216110,4.6172744,2017.4,2016.9,4.95796]
[1742387216341,9.5742944,2017.4,2017.0,4.95773]
[1742387216521,14.5313744,2017.4,2017.0,4.95773]
[1742387216721,4.95728,2017.3,2016.9,4.95796]
[1742387216935,4.95728,2017.3,2016.9,4.80796]
[1742387216936,5.73858,2017.3,2016.9,4.80796]
[1742387217119,5.73858,2017.3,2016.9,10.8179]
[1742387217335,5.73858,2017.3,2017.0,4.95775]
[1742387217336,0.7813,2017.3,2017.0,4.95775]
[1742387217511,3.0,2017.4,2017.1,4.95756]
[1742387217929,11.94507184,2017.6,2016.9,1.05193]
[1742387217930,11.94509184,2017.6,2017.2,4.95733]
[1742387218131,5.3984744,2017.6,2017.3,4.95707]
[1742387218317,7.95617,2017.7,2017.4,4.95687]
[1742387218510,4.6172744,2017.6,2017.3,4.95706]
[1742387219043,4.95669,2017.5,2017.1,10.71928]
[1742387219347,9.5738644,2017.6,2017.2,4.95736]
[1742387219848,9.5738644,2017.6,2017.2,9.91455]
[1742387220054,4.6172744,2017.6,2017.3,4.9571]
[1742387220349,4.6172744,2017.6,2017.2,4.95719]
[1742387220350,9.5737144,2017.6,2017.2,4.95734]
[1742387220518,4.6172744,2017.6,2017.3,4.95701]
[1742387220851,4.6172744,2017.6,2016.9,1.88493]
[1742387220852,4.6172744,2017.4,2016.9,1.88493]
[1742387221059,4.95746,2017.2,2016.8,9.91656]
[1742387221223,4.95746,2017.2,2016.8,4.95822]
[1742387221424,4.95746,2017.2,2016.8,4.95817]
[1742387221627,4.95746,2017.2,2016.7,5.79157]
[1742387221628,4.95766,2017.1,2016.7,5.79157]
[1742387221956,4.6172744,2016.8,2016.6,0.46285344]
[1742387222154,9.5757644,2016.8,2016.6,0.46285344]
[1742387222450,15.1462344,2017.0,2016.6,5.42166344]
[1742387222665,9.5752344,2017.0,2016.6,5.42166344]
[1742387222816,7.17894944,2017.1,2016.6,5.42166344]
[1742387223016,7.17894944,2017.1,2016.6,4.95881]
[1742387223247,4.95789,2017.0,2016.6,9.91739]
[1742387223476,7.17894944,2017.1,2016.7,4.95855]
[1742387224146,17.137,2017.3,2017.0,4.95765]
[1742387224345,0.776,2017.4,2017.1,4.95759]
[1742387224698,10.4023744,2017.2,2016.7,4.95836]
[1742387224886,4.95771,2017.1,2016.7,9.91685]
[1742387225081,9.5751544,2017.0,2016.6,4.95883]
[1742387225382,4.6172744,2016.8,2016.5,4.95903]
[1742387225571,4.6172744,2016.6,2016.2,5.71186]
[1742387225767,4.6172744,2016.6,2016.4,4.95926]
[1742387225983,9.91743,2016.7,2016.3,4.95946]
[1742387226180,9.5761344,2016.6,2016.2,4.95982]
[1742387226387,11.66973084,2016.6,2016.2,4.95982]
[1742387226582,11.66973084,2016.6,2016.2,9.91964]
[1742387226756,4.6172744,2016.6,2016.3,4.95946]
[1742387226960,4.6172744,2016.6,2015.9,0.7594]
[1742387226961,4.95885,2016.6,2016.2,4.95982]
[1742387227147,0.793,2016.5,2015.6,0.7617]
[1742387227348,4.95992,2016.2,2015.8,4.96063]
[1742387227548,4.95992,2016.2,2015.7,4.96089]
[1742387227549,4.6172744,2016.3,2015.9,4.96037]
[1742387227800,5.4102744,2016.5,2016.0,4.96011]
[1742387227963,3.0,2016.4,2016.1,4.96005]
[1742387228498,4.6172744,2016.3,2016.1,4.96005]
[1742387228700,4.6172744,2016.3,2016.0,4.96011]
[1742387229067,4.6172744,2016.3,2015.8,4.96079]
[1742387229273,4.95983,2016.2,2015.8,9.92149]
[1742387229472,9.5768944,2016.3,2015.8,9.92149]
[1742387229781,16.96415617,2016.3,2015.8,9.92129]
[1742387229981,12.00444617,2016.3,2015.8,4.96059]
[1742387230377,4.95994,2016.2,2015.8,4.96059]
[1742387230583,12.00446617,2016.3,2015.9,4.96055]
[1742387230902,4.95983,2016.2,2015.8,4.96059]
[1742387231105,4.96034,2016.0,2015.6,5.72278]
[1742387231472,4.6172744,2015.9,2015.6,5.72295]
[1742387231667,4.6172744,2015.9,2015.5,4.96153]
[1742387231972,9.5779944,2015.9,2015.5,9.92298]
[1742387232295,4.6172744,2015.9,2015.7,4.96105]
[1742387232483,12.67590402,2016.1,2015.7,9.92188]
[1742387232800,12.67590402,2016.1,2015.3,4.96204]
[1742387232801,9.5778944,2015.9,2015.3,4.96204]
[1742387232999,9.5779244,2015.9,2015.5,4.9615]
[1742387233203,4.6172744,2015.9,2015.6,4.96117]
[1742387233415,4.6172744,2015.9,2015.7,4.961]
[1742387234303,11.88570402,2016.1,2015.8,4.96066]
[1742387234515,6.31370402,2016.1,2015.9,4.96047]
[1742387234687,0.7979,2016.2,2015.9,4.96047]
[1742387236068,27.8812744,2016.3,2016.0,4.9602]
[1742387236269,5.4415744,2016.7,2016.0,0.7588]
[1742387236478,5.4415744,2016.7,2016.3,4.95945]
[1742387236714,4.6172744,2016.5,2016.1,9.91989]
[1742387237004,7.38021844,2016.7,2016.0,0.7588]
[1742387237005,4.6172744,2016.3,2016.0,5.7191]
[1742387237211,4.6172744,2016.3,2016.0,5.71897]
[1742387237710,10.3616244,2016.3,2015.8,4.96067]
[1742387237909,5.4018744,2016.3,2016.0,4.96014]
[1742387238081,5.4018744,2016.3,2016.1,4.96003]
[1742387238269,11.39766084,2016.3,2015.9,4.96042]
[1742387238486,4.6172744,2016.3,2016.0,4.96022]
[1742387238682,4.6172744,2016.3,2016.1,4.95998]
[1742387238886,4.6172744,2016.3,2016.0,9.92044]
[1742387239084,4.6172744,2016.3,2016.1,4.96003]
[1742387239527,4.6172744,2016.3,2015.9,4.96034]
[1742387239687,4.6172744,2016.3,2016.0,4.96022]
[1742387240017,4.6172744,2016.3,2016.1,4.95998]
[1742387240919,4.6172744,2016.3,2015.9,4.96053]
[1742387241095,4.6172744,2016.3,2015.9,4.96035]
[1742387241287,10.17983098,2016.3,2015.9,4.96035]
[1742387241822,10.17983098,2016.3,2015.9,9.92077]
[1742387242124,10.17983098,2016.3,2015.9,4.96035]
[1742387242293,5.22016098,2016.3,2015.7,11.30362]
[1742387242498,4.6172744,2016.3,2016.0,4.96019]